bitfinex/quotes_ETHUSD_20250424
["timestamp","ask_amount","ask_price","bid_price","bid_amount"]
[1745538210733,11.31003486,1768.4,1768.2,0.7768]
[1745538210946,5.65497092,1768.4,1768.2,0.7768]
[1745538211846,11.31002926,1768.4,1768.2,0.7768]
[1745538212047,5.65497092,1768.4,1768.1,0.7794]
[1745538212254,0.7624,1768.7,1768.1,6.35260403]
[1745538212416,6.48497327,1768.9,1768.4,0.7794]
[1745538212616,6.48497327,1768.9,1768.4,6.43406751]
[1745538212856,8.65304043,1769.0,1768.5,0.7794]
[1745538213152,0.8316,1769.1,1768.6,5.65417115]
[1745538213314,6.68321999,1769.2,1768.6,6.41766425]
[1745538213514,5.65273608,1769.1,1768.6,5.65418975]
[1745538213767,5.65273608,1769.1,1768.7,0.7637]
[1745538215250,5.65302096,1769.0,1768.7,0.7637]
[1745538215458,6.78359666,1769.0,1768.7,0.7637]
[1745538216036,11.30562336,1769.1,1768.7,0.7637]
[1745538216323,5.65273608,1769.1,1768.7,0.7637]
[1745538216736,5.65291305,1769.0,1768.7,0.7637]
[1745538217219,5.65273608,1769.1,1768.7,0.7637]
[1745538217953,5.65294176,1769.0,1768.7,0.7637]
[1745538218341,0.7509,1768.9,1768.5,0.8112]
[1745538218721,5.65375715,1768.8,1768.5,100.8112]
[1745538219254,6.40430759,1768.9,1768.5,100.8112]
[1745538219755,12.05781135,1768.9,1768.5,100.8112]
[1745538219923,6.40430759,1768.9,1768.5,100.8112]
[1745538220122,5.65356804,1768.8,1768.5,100.8112]
[1745538220439,6.40430759,1768.9,1768.5,100.8112]
[1745538220627,3.0,1768.9,1768.5,102.01846352]
[1745538220833,0.7509,1769.1,1768.5,102.01846352]
[1745538221032,5.65293253,1769.0,1768.5,107.67276701]
[1745538221447,6.40369326,1769.1,1768.6,0.8112]
[1745538221767,9.40369326,1769.1,1768.6,6.46537366]
[1745538221947,9.40369326,1769.1,1768.7,0.64653737]
[1745538222133,8.65279326,1769.1,1768.8,0.7977]
[1745538222952,14.3056471,1769.1,1768.8,0.7977]
[1745538223160,8.65279326,1769.1,1768.8,0.7977]
[1745538224354,5.65259235,1769.1,1768.8,0.7977]
[1745538226180,5.65307847,1769.0,1768.8,0.7977]
[1745538226480,5.65259235,1769.1,1768.8,0.7977]
[1745538227168,11.30545742,1769.1,1768.8,0.7977]
[1745538227386,5.65259235,1769.1,1769.0,100.0]
[1745538229748,6.78309689,1769.1,1769.0,100.0]
[1745538230590,7.58859689,1769.1,1769.0,100.0]
[1745538231609,10.58859689,1769.1,1769.0,100.0]
[1745538232207,9.45809235,1769.1,1769.0,100.0]
[1745538236883,10.1970644,1769.1,1769.0,100.0]
[1745538237067,10.51377905,1769.1,1769.0,100.0]
[1745538250520,5.969307,1769.1,1769.0,100.0]
[1745538251196,8.969307,1769.1,1769.0,100.0]
[1745538251406,8.65259235,1769.1,1769.0,100.0]
[1745538252630,5.57297205,1769.2,1768.7,0.8085]
[1745538252842,5.65355042,1768.8,1768.7,0.8085]
[1745538253015,5.57297205,1769.2,1768.7,0.8085]
[1745538253016,5.65325432,1768.9,1768.7,0.8085]
[1745538253216,11.3067466,1768.9,1768.7,0.8085]
[1745538254337,5.65325432,1768.9,1768.7,0.8085]
[1745538254544,11.30678189,1768.9,1768.7,0.8085]
[1745538254748,5.65355042,1768.8,1768.7,0.8085]
[1745538256015,5.65452141,1768.5,1768.2,4.834]
[1745538256215,5.65452141,1768.5,1768.3,0.4834]
[1745538256453,5.65440201,1768.6,1768.4,0.7806]
[1745538256633,5.65450947,1768.5,1768.4,0.7806]
[1745538257249,5.65437062,1768.6,1768.4,0.7806]
[1745538259629,5.654389,1768.6,1768.4,0.7806]
[1745538260765,1.15389614,1768.8,1768.4,0.7806]
[1745538260965,5.65443264,1768.6,1768.4,0.7806]
[1745538261163,11.30891448,1768.6,1768.4,0.7806]
[1745538261469,5.65443264,1768.6,1768.4,0.7806]
[1745538262370,11.30892174,1768.6,1768.4,0.7806]
[1745538262769,1.15389614,1768.8,1768.4,0.7806]
[1745538262973,5.65450947,1768.5,1768.4,0.7806]
[1745538263565,5.65438743,1768.6,1768.4,0.7806]
[1745538263932,5.65450947,1768.5,1768.4,0.7806]
[1745538264866,5.65439698,1768.6,1768.4,0.7806]
[1745538265556,5.65450947,1768.5,1768.4,0.7806]
[1745538266349,0.73897205,1768.9,1768.4,0.7806]
[1745538266537,5.6544885,1768.6,1768.4,0.7806]
[1745538266836,5.65450947,1768.5,1768.4,0.7806]
[1745538267242,5.6544885,1768.6,1768.4,0.7806]
[1745538267448,5.65446507,1768.6,1768.4,0.7806]
[1745538267644,5.65444734,1768.6,1768.4,0.7806]
[1745538268796,5.65450947,1768.5,1768.4,0.7806]
[1745538269159,5.65444734,1768.6,1768.4,0.7806]
[1745538269590,5.65450947,1768.5,1768.4,0.7806]
[1745538270495,5.6544052,1768.6,1768.4,0.7806]
[1745538271415,5.6542258,1768.6,1768.4,0.7806]
[1745538274793,6.07373969,1768.7,1768.4,0.7806]
[1745538275096,5.65446024,1768.6,1768.4,0.7806]
[1745538275305,5.65445523,1768.6,1768.4,0.7806]
[1745538276312,5.65442969,1768.6,1768.4,0.7806]
[1745538280119,6.07362894,1768.7,1768.4,0.7806]
[1745538280317,5.65336196,1768.9,1768.4,0.7806]
[1745538280616,5.65307416,1769.0,1768.6,0.8179]
[1745538280796,5.65307416,1769.0,1768.6,0.78789678]
[1745538280998,5.65307416,1769.0,1768.7,0.8179]
[1745538282816,11.30630396,1769.0,1768.7,0.8179]
[1745538283118,5.65323246,1768.9,1768.7,0.8179]
[1745538285738,5.65305678,1769.0,1768.7,0.8179]
[1745538287324,11.30625608,1769.0,1768.7,0.8179]
[1745538288791,5.65305678,1769.0,1768.7,0.8179]
[1745538288994,22.6097741,1770.0,1768.9,5.65310643]
[1745538288995,5.65177142,1769.4,1768.9,5.65310643]
[1745538289305,5.65227495,1769.2,1768.9,0.818]
[1745538290026,5.65210287,1769.3,1768.9,0.818]
[1745538290233,5.65210287,1769.3,1769.0,0.8131]
[1745538292367,5.65163356,1769.4,1769.0,0.8131]
[1745538292672,5.65200246,1769.3,1769.0,0.8131]
[1745538293363,11.30356246,1769.4,1769.0,0.8131]
[1745538293680,5.65197392,1769.3,1769.0,1.45972838]
[1745538293839,5.65197392,1769.3,1769.0,0.8131]
[1745538294349,5.65184783,1769.4,1769.0,5.6441]
[1745538294733,5.65203382,1769.3,1769.0,5.6441]
[1745538295149,11.30423141,1769.3,1769.0,5.6441]
[1745538295370,5.65203382,1769.3,1769.0,5.6441]
[1745538295578,5.65203382,1769.3,1769.1,0.56441]
[1745538296098,11.30429251,1769.3,1769.1,0.56441]
[1745538296377,5.65227221,1769.2,1769.1,0.56441]
[1745538299564,5.65259171,1769.1,1769.0,5.6441]
[1745538300461,5.65245102,1769.2,1769.0,5.6441]
[1745538301483,11.30497215,1769.2,1769.0,5.6441]
[1745538301670,5.65245102,1769.2,1769.0,5.6441]
[1745538302293,5.65210078,1769.3,1769.1,0.7749]
[1745538302494,5.65210078,1769.3,1769.1,1.33549]
[1745538303091,5.65227221,1769.2,1769.1,1.33549]
[1745538303870,5.65216773,1769.3,1769.1,1.33549]
[1745538304594,5.6514958,1769.5,1769.2,0.7621]
[1745538304770,5.6514958,1769.5,1769.1,1.26470051]
[1745538306765,5.6514958,1769.5,1769.1,1.20817612]
[1745538307475,5.6514958,1769.5,1769.1,1.26469501]
[1745538307779,5.65070355,1769.7,1769.3,0.73805747]
[1745538307965,5.65070355,1769.7,1769.4,0.8115]
[1745538309380,5.65023732,1769.9,1769.4,5.69801246]
[1745538309585,5.65023732,1769.9,1769.5,0.8035]
[1745538309984,5.64986979,1770.0,1769.6,0.8035]
[1745538310185,5.64986979,1770.0,1769.6,1.4489738]
[1745538310385,5.65003921,1769.9,1769.6,0.8035]
[1745538311384,5.64986979,1770.0,1769.6,0.8035]
[1745538311714,1.20344773,1770.2,1769.6,0.8035]
[1745538311715,5.65004194,1769.9,1769.6,0.8035]
[1745538311898,5.6499031,1770.0,1769.6,0.8035]
[1745538312925,5.65006711,1769.9,1769.6,0.8035]
[1745538313099,6.85255074,1770.2,1769.6,0.8035]
[1745538313414,5.65016515,1769.9,1769.6,0.8035]
[1745538314116,5.65067525,1769.7,1769.6,0.8035]
[1745538314272,2.88993949,1770.2,1769.4,4.83]
[1745538314273,6.38841344,1769.8,1769.4,0.7952]
[1745538314478,5.6517801,1769.4,1769.2,0.7952]
[1745538315003,5.65217225,1769.3,1769.1,4.827]
[1745538315202,5.65186551,1769.4,1769.1,4.827]
[1745538315504,5.65196656,1769.3,1769.1,4.827]
[1745538316071,5.65227221,1769.2,1769.1,4.827]
[1745538316273,5.65209847,1769.3,1769.1,4.827]
[1745538316605,5.65213929,1769.3,1769.1,4.827]
[1745538318372,6.42934916,1769.5,1769.1,7.08442]
[1745538318572,5.65155494,1769.5,1769.2,0.7665]
[1745538319103,11.30315075,1769.5,1769.2,0.7665]
[1745538319271,11.3031858,1769.5,1769.2,0.7665]
[1745538319476,11.30316529,1769.5,1769.2,0.7665]
[1745538319668,5.65163409,1769.4,1769.2,0.7665]
[1745538320074,5.65163409,1769.4,1769.1,7.08442]
[1745538320075,11.3035386,1769.4,1769.1,4.827]
[1745538320285,5.65199426,1769.3,1769.1,4.827]
[1745538320488,5.65199426,1769.3,1769.1,5.38635]
[1745538320687,7.06741726,1769.7,1769.1,5.38635]
[1745538320888,5.65189464,1769.4,1769.1,4.827]
[1745538321087,5.65227221,1769.2,1769.1,4.827]
[1745538321292,5.65227221,1769.2,1769.0,5.5935]
[1745538322009,11.30482969,1769.2,1769.0,5.5935]
[1745538322305,5.65212737,1769.3,1769.0,5.5935]
[1745538322509,5.6524024,1769.2,1769.0,5.5935]
[1745538324414,5.65214851,1769.3,1769.0,5.5935]
[1745538324714,5.65228138,1769.2,1769.0,5.5935]
[1745538326318,5.65217072,1769.3,1769.0,5.5935]
[1745538326718,5.65228008,1769.2,1769.0,5.5935]
[1745538327016,5.65216871,1769.3,1769.0,5.5935]
[1745538327217,5.65227644,1769.2,1769.0,5.5935]
[1745538328976,5.6521666,1769.3,1769.0,5.5935]
[1745538329310,5.65227612,1769.2,1769.0,5.5935]
[1745538330212,5.6521669,1769.3,1769.0,5.5935]
[1745538330447,5.6523072,1769.2,1769.0,5.5935]
[1745538331481,5.65369447,1768.8,1768.6,5.6444]
[1745538331746,11.30761594,1768.8,1768.6,4.828]
[1745538331894,5.65379188,1768.8,1768.6,4.828]
[1745538332101,5.65418975,1768.6,1768.5,0.8164]
[1745538332300,5.65456703,1768.5,1768.3,22.535]
[1745538332593,5.65418975,1768.6,1768.3,22.535]
[1745538332594,5.65435469,1768.6,1768.3,22.535]
[1745538333033,5.65465782,1768.5,1768.3,22.535]
[1745538333394,5.654029,1768.7,1768.3,23.58646169]
[1745538333594,5.65405455,1768.7,1768.3,23.58646169]
[1745538333899,5.65018391,1768.6,1768.3,23.58646169]
[1745538334634,5.65348596,1768.9,1768.5,0.7677]
[1745538334821,5.65355885,1768.8,1768.5,0.7677]
[1745538337135,5.65387138,1768.7,1768.5,0.7677]
[1745538337648,6.40676444,1768.8,1768.5,0.7677]
[1745538337867,12.06057543,1768.8,1768.5,0.7677]
[1745538338149,6.40676444,1768.8,1768.5,0.7677]
[1745538338654,12.06057116,1768.8,1768.5,0.7677]
[1745538338949,12.06056222,1768.8,1768.5,0.7677]
[1745538339543,6.40676444,1768.8,1768.5,0.7677]
[1745538339838,5.65388913,1768.7,1768.5,0.7677]
[1745538341141,5.65388913,1768.7,1768.3,23.59426169]
[1745538341337,5.65421176,1768.6,1768.3,23.59426169]
[1745538341537,5.65408394,1768.7,1768.3,23.59426169]
[1745538341944,5.65420384,1768.6,1768.3,23.59426169]
[1745538343234,5.65420384,1768.6,1768.3,22.5428]
[1745538344443,5.65455606,1768.5,1768.3,4.828]
[1745538344654,6.40490384,1768.6,1768.3,4.828]
[1745538345512,5.65420384,1768.6,1768.3,5.65]
[1745538346061,6.47532876,1768.8,1768.3,12.04314742]
[1745538346359,5.65338311,1768.9,1768.5,0.8195]
[1745538346716,5.6535685,1768.8,1768.5,0.8195]
[1745538347047,5.65338311,1768.9,1768.5,0.8195]
[1745538347232,11.30687165,1768.9,1768.5,0.8195]
[1745538347438,5.65367741,1768.8,1768.5,0.8195]
[1745538348359,5.65338607,1768.9,1768.5,0.8195]
[1745538348535,5.65356093,1768.8,1768.5,0.8195]
[1745538348856,5.65356093,1768.8,1768.5,1.58736101]
[1745538349015,5.65338938,1768.9,1768.5,1.58736101]
[1745538349220,5.65338938,1768.9,1768.5,0.8195]
[1745538349627,5.65356498,1768.8,1768.5,0.8195]
[1745538350500,5.65388915,1768.7,1768.5,0.8195]
[1745538352781,5.65340704,1768.9,1768.5,0.8195]
[1745538353522,11.30688071,1768.9,1768.5,0.8195]
[1745538354065,0.8054,1769.0,1768.5,1.46691313]
[1745538354265,5.6538022,1768.8,1768.5,0.8195]
[1745538355259,11.30689393,1768.9,1768.5,0.8195]
[1745538355488,5.65365097,1768.8,1768.5,0.8195]
[1745538356564,11.30749944,1768.8,1768.5,0.8195]
[1745538356735,5.65365097,1768.8,1768.5,0.8195]
[1745538358870,11.30750702,1768.8,1768.5,0.8195]
[1745538359072,5.65377084,1768.8,1768.5,0.8195]
[1745538361161,5.65376922,1768.8,1768.5,0.8195]
[1745538361473,5.65389568,1768.7,1768.5,0.8195]
[1745538361658,5.65323082,1768.9,1768.3,4.828]
[1745538361875,5.65417157,1768.7,1768.3,5.5869]
[1745538362048,5.65476643,1768.5,1768.3,4.828]
[1745538362252,5.65475251,1768.5,1768.3,4.828]
[1745538363365,5.65482922,1768.4,1768.3,4.828]
[1745538363755,5.65502362,1768.4,1768.1,0.7589]
[1745538364788,11.31015489,1768.4,1768.1,0.7589]
[1745538365661,5.65502043,1768.4,1768.1,0.7589]
[1745538365863,6.47339497,1768.5,1768.1,1.31749]
[1745538366201,5.6544043,1768.6,1768.2,0.7951]
[1745538367296,5.65470452,1768.5,1768.2,0.7951]
[1745538367495,5.65438277,1768.6,1768.2,0.7951]
[1745538368023,5.65451362,1768.5,1768.2,0.7951]
[1745538368503,5.65451362,1768.5,1768.2,1.49604706]
[1745538368667,5.65439859,1768.6,1768.2,1.49604706]
[1745538369075,11.30890665,1768.6,1768.2,1.49604706]
[1745538369313,5.65439859,1768.6,1768.2,1.49604706]
[1745538372220,5.65364128,1768.8,1768.2,0.70094706]
[1745538372418,5.65364128,1768.8,1768.4,0.7691]
[1745538372917,0.7988,1769.2,1768.7,5.65385301]
[1745538373123,5.65146237,1769.5,1768.9,0.7691]
[1745538373273,0.7988,1769.6,1769.1,0.7691]
[1745538373274,5.65182248,1769.4,1769.1,0.7691]
[1745538373479,5.65195274,1769.3,1769.2,4.825]
[1745538374119,5.65187468,1769.4,1769.2,4.825]
[1745538374428,5.65153008,1769.5,1769.2,4.825]
[1745538374611,11.30314041,1769.5,1769.2,4.825]
[1745538374972,6.86172412,1769.5,1769.2,4.825]
[1745538375216,5.65175005,1769.4,1769.2,4.825]
[1745538376994,5.65147807,1769.5,1769.2,4.825]
[1745538378299,11.3031112,1769.5,1769.2,4.825]
[1745538379007,5.65164882,1769.4,1769.2,4.825]
[1745538380113,5.65147725,1769.5,1769.2,4.825]
[1745538380310,5.65106266,1769.6,1769.2,5.38441]
[1745538384262,5.65106266,1769.6,1769.2,11.03662841]
[1745538384466,5.65024101,1769.9,1769.4,5.65159217]
[1745538384760,6.47323802,1770.0,1769.5,7.17314599]
[1745538384761,11.2998867,1770.0,1769.5,7.17314599]
[1745538384915,5.64996054,1770.0,1769.6,4.823]
[1745538385117,5.65005869,1769.9,1769.6,4.823]
[1745538385727,6.47249943,1770.2,1769.6,4.823]
[1745538385928,5.65029127,1769.9,1769.6,4.823]
[1745538386128,5.65063519,1769.8,1769.6,4.823]
[1745538386455,11.30123978,1769.8,1769.6,4.823]
[1745538386617,5.65060459,1769.8,1769.6,4.823]
[1745538388124,5.65057668,1769.8,1769.6,4.823]
[1745538388756,5.65068056,1769.7,1769.6,4.823]
[1745538389466,6.47995938,1769.5,1769.4,4.823]
[1745538389627,5.65205558,1769.3,1769.2,4.823]
[1745538389822,6.47984308,1769.5,1768.9,0.63321575]
[1745538390055,5.65224925,1769.3,1769.0,4.822]
[1745538390359,5.65211572,1769.3,1769.0,4.822]
[1745538390534,11.30434933,1769.3,1769.0,4.822]
[1745538390735,5.65211572,1769.3,1769.0,4.822]
[1745538391427,5.6521939,1769.3,1769.0,4.822]
[1745538393753,11.3044279,1769.3,1769.0,4.822]
[1745538393918,5.6521939,1769.3,1769.0,4.822]
[1745538396063,5.65244933,1769.2,1769.0,4.822]
[1745538396728,5.65210751,1769.3,1769.0,4.822]
[1745538398729,5.65146635,1769.5,1769.1,0.8329]
[1745538398928,5.65173271,1769.4,1769.1,0.8329]
[1745538400564,0.782,1769.6,1769.1,0.8329]
[1745538400763,1.13012572,1769.7,1769.3,5.65194066]
[1745538400764,5.65069393,1769.7,1769.3,5.65194066]
[1745538400928,5.65069393,1769.7,1769.4,4.823]
[1745538401133,5.65099525,1769.6,1769.4,4.823]
[1745538408096,5.65131393,1769.5,1769.4,4.823]
[1745538412243,5.65117274,1769.6,1769.4,4.823]
[1745538412586,6.46383169,1769.8,1769.5,0.7602]
[1745538412766,5.6503793,1769.8,1769.5,0.7602]
[1745538412962,5.65024752,1769.9,1769.5,1.31852]
[1745538413344,5.65038935,1769.8,1769.5,1.31852]
[1745538413982,5.65024752,1769.9,1769.5,1.31852]
[1745538415752,6.45876991,1770.0,1769.5,1.31852]
[1745538416090,5.65024181,1769.9,1769.5,1.31852]
[1745538416267,5.6503565,1769.8,1769.5,1.31852]
[1745538419187,5.65024181,1769.9,1769.5,1.31852]
[1745538419382,5.65040081,1769.8,1769.5,1.31852]
[1745538420456,5.65069626,1769.7,1769.5,1.31852]
[1745538421166,5.65040081,1769.8,1769.5,1.31852]
[1745538421500,5.65069035,1769.7,1769.5,1.31852]
[1745538422894,5.65099457,1769.6,1769.5,4.82]
[1745538423096,5.6507883,1769.7,1769.5,4.82]
[1745538424195,11.30176045,1769.7,1769.5,4.82]
[1745538424395,5.6507883,1769.7,1769.5,4.82]
[1745538424883,5.65058206,1769.8,1769.5,4.82]
[1745538425054,5.65058206,1769.8,1769.5,5.3809]
[1745538425254,5.65068052,1769.7,1769.5,5.3809]
[1745538425588,5.65099457,1769.6,1769.5,4.82]
[1745538426207,5.65099457,1769.6,1769.4,0.789]
[1745538426409,5.65099457,1769.6,1769.4,5.609]
[1745538428041,5.65131393,1769.5,1769.4,5.609]
[1745538428191,5.65131393,1769.5,1769.3,4.82]
[1745538430322,5.65195274,1769.3,1769.2,4.82]
[1745538430625,5.6522498,1769.3,1769.0,0.8165]
[1745538430922,5.65259171,1769.1,1769.0,4.82]
[1745538433626,5.65229201,1769.2,1769.0,4.82]
[1745538433927,5.65211094,1769.3,1769.0,4.82]
[1745538434124,11.30432451,1769.3,1769.0,4.82]
[1745538434314,6.90250309,1769.3,1769.0,4.82]
[1745538434825,12.55474269,1769.3,1769.0,4.82]
[1745538435226,5.65229437,1769.2,1769.0,4.82]
[1745538436421,11.30485088,1769.2,1769.0,4.82]
[1745538436618,5.65229437,1769.2,1769.0,4.82]
[1745538436820,5.65259171,1769.1,1769.0,4.82]
[1745538442445,6.34256302,1769.2,1769.0,4.82]
[1745538443330,5.65229437,1769.2,1769.0,4.82]
[1745538444417,5.65259171,1769.1,1769.0,4.82]
[1745538444618,5.65229437,1769.2,1769.0,4.82]
[1745538445342,11.30484572,1769.2,1769.0,4.82]
[1745538445544,5.65229437,1769.2,1769.0,4.82]
[1745538446065,5.65259171,1769.1,1769.0,4.82]
[1745538446657,5.65246331,1769.2,1769.0,4.82]
[1745538446834,11.30502171,1769.2,1769.0,4.82]
[1745538447234,5.65246331,1769.2,1769.0,4.82]
[1745538448463,11.30503856,1769.2,1769.0,4.82]
[1745538449164,5.65246331,1769.2,1769.0,4.82]
[1745538449528,11.3050248,1769.2,1769.0,4.82]
[1745538449862,5.65246331,1769.2,1769.0,4.82]
[1745538450444,5.65216747,1769.3,1769.0,4.82]
[1745538450849,0.8145,1769.6,1769.2,0.73805747]
[1745538451044,5.65080359,1769.7,1769.3,0.83991599]
[1745538451226,5.65080359,1769.7,1769.4,4.819]
[1745538451862,6.46499843,1769.8,1769.4,4.819]
[1745538452251,5.65029451,1769.9,1769.5,0.825]
[1745538452451,5.64954634,1770.1,1769.6,6.44533941]
[1745538452767,5.64974244,1770.0,1769.7,0.8043]
[1745538453057,3.0,1770.1,1769.7,0.8043]
[1745538453058,5.64960001,1770.1,1769.7,0.8043]
[1745538453250,5.64923872,1770.2,1769.8,0.73805747]
[1745538453448,5.64926371,1770.2,1769.8,5.55705747]
[1745538453651,5.64933396,1770.2,1769.9,0.8043]
[1745538454053,5.64940194,1770.1,1769.9,0.8043]
[1745538454253,5.64926058,1770.2,1769.9,0.8043]
[1745538454841,8.64893285,1770.3,1769.9,0.8043]
[1745538454842,5.64891157,1770.3,1769.9,0.8043]
[1745538455047,5.64891157,1770.3,1769.9,1.44043575]
[1745538455268,3.0,1770.2,1769.9,1.44043575]
[1745538455855,8.64909488,1770.2,1769.9,1.44043575]
[1745538456457,14.2984516,1770.2,1769.9,1.44043575]
[1745538456787,5.64971751,1770.0,1769.9,0.8043]
[1745538456990,5.64952056,1770.1,1769.9,0.8043]
[1745538457377,8.64923887,1770.2,1769.9,0.8043]
[1745538457754,5.64952245,1770.1,1769.9,0.8043]
[1745538458684,5.64971751,1770.0,1769.9,0.8043]
[1745538458851,5.64952245,1770.1,1769.8,5.6295]
[1745538459057,5.64960641,1770.1,1769.8,5.6295]
[1745538459376,11.29926895,1770.1,1769.8,5.6295]
[1745538459581,5.65003672,1769.9,1769.8,0.8105]
[1745538459782,0.8056,1770.1,1769.8,5.6285]
[1745538459956,6.45520691,1770.1,1769.8,5.6285]
[1745538460157,12.10491529,1770.1,1769.8,5.6285]
[1745538460366,5.64972092,1770.0,1769.8,5.6285]
[1745538460971,6.45518656,1770.1,1769.8,5.6285]
[1745538461293,5.64958656,1770.1,1769.8,5.6285]
[1745538462175,9.4544997,1770.3,1769.8,6.19135]
[1745538462383,8.6488997,1770.3,1769.8,12.57963585]
[1745538462584,14.29794451,1770.3,1769.8,12.57963585]
[1745538462781,8.6488997,1770.3,1769.8,12.57963585]
[1745538463699,5.64909899,1770.2,1769.8,12.57963585]
[1745538464076,5.64909366,1770.2,1769.8,12.57963585]
[1745538464276,8.64897735,1770.3,1769.8,12.57963585]
[1745538464513,5.64908238,1770.2,1769.9,1.25796359]
[1745538464713,14.29779634,1770.3,1769.9,1.25796359]
[1745538464917,8.64877635,1770.3,1769.9,1.25796359]
[1745538465083,3.0,1770.3,1769.9,1.25796359]
[1745538465276,8.64896016,1770.3,1769.8,11.84169937]
[1745538465783,3.0,1770.3,1769.8,11.84169937]
[1745538466011,5.64825066,1770.5,1770.0,5.64955395]
[1745538466211,3.0,1770.5,1770.2,0.7694]
[1745538466388,5.64794421,1770.6,1770.3,4.815]
[1745538466589,5.64817959,1770.5,1770.3,4.815]
[1745538466794,5.64817959,1770.5,1770.3,5.37344]
[1745538467399,14.29611042,1770.6,1770.3,5.37344]
[1745538467587,5.6481296,1770.5,1770.3,5.37344]
[1745538469217,8.64801289,1770.6,1770.3,5.37344]
[1745538469798,5.64795634,1770.6,1770.3,5.37344]
[1745538470026,5.64795634,1770.6,1770.4,0.537344]
[1745538470524,8.6479523,1770.6,1770.4,0.537344]
[1745538470688,5.64812199,1770.5,1770.4,0.537344]
[1745538470899,8.6479523,1770.6,1770.4,0.537344]
[1745538471132,5.64812199,1770.5,1770.4,0.537344]
[1745538471335,5.64812199,1770.5,1770.3,4.815]
[1745538471521,5.64844103,1770.4,1770.3,4.815]
[1745538472931,5.64836225,1770.5,1770.3,4.815]
[1745538474013,5.64844103,1770.4,1770.3,4.815]
[1745538474339,5.64836225,1770.5,1770.3,4.815]
[1745538474637,11.29674836,1770.5,1770.3,4.815]
[1745538474836,11.29673305,1770.5,1770.3,4.815]
[1745538475019,5.64844103,1770.4,1770.3,4.815]
[1745538475217,5.64844103,1770.4,1770.3,5.37344]
[1745538476735,5.64844103,1770.4,1770.2,0.7694]
[1745538479054,5.64844103,1770.4,1770.0,0.8327]
[1745538479055,11.29795629,1770.3,1770.0,0.8327]
[1745538479350,5.64888645,1770.3,1770.1,4.814]
[1745538479846,0.7756,1770.4,1770.0,0.8327]
[1745538480050,5.64897691,1770.3,1770.1,4.814]
[1745538480856,5.64838379,1770.5,1770.2,0.8127]
[1745538481062,5.64876009,1770.3,1770.1,4.814]
[1745538481629,11.29671006,1770.5,1770.1,4.814]
[1745538481865,5.64829403,1770.5,1770.1,4.814]
[1745538482229,5.64829403,1770.5,1770.2,0.7941]
[1745538485743,5.64798638,1770.6,1770.2,0.7941]
[1745538485980,5.64812286,1770.5,1770.2,0.7941]
[1745538486206,5.64812286,1770.5,1770.2,1.91984796]
[1745538487682,5.64798829,1770.6,1770.2,1.91984796]
[1745538487916,8.64767077,1770.7,1770.2,1.91984796]
[1745538488086,8.64767077,1770.7,1770.2,7.56877085]
[1745538488701,5.64791282,1770.6,1770.2,7.56877085]
[1745538488985,5.64791282,1770.6,1770.3,0.75687709]
[1745538489187,8.64767077,1770.7,1770.3,0.75687709]
[1745538489382,5.64780761,1770.6,1770.3,0.75687709]
[1745538489781,5.64780761,1770.6,1770.2,1.91984796]
[1745538490599,5.64822409,1770.5,1770.2,1.91984796]
[1745538490801,5.64822409,1770.5,1770.2,0.7941]
[1745538491011,5.64822409,1770.5,1770.3,4.814]
[1745538492215,5.64865763,1770.4,1770.2,0.7941]
[1745538492427,5.64833586,1770.5,1770.3,4.813]
[1745538493296,5.64793574,1770.6,1770.3,4.813]
[1745538493625,5.64793574,1770.6,1770.3,5.37371]
[1745538493824,5.64814105,1770.5,1770.3,5.37371]
[1745538495720,5.64814105,1770.5,1770.3,4.813]
[1745538496695,5.64844103,1770.4,1770.3,4.813]
[1745538502230,6.46664105,1770.5,1770.3,4.813]
[1745538502428,5.64814105,1770.5,1770.3,4.813]
[1745538503405,5.64844103,1770.4,1770.3,4.813]
[1745538504201,6.77809924,1770.4,1770.3,4.813]
[1745538504397,6.77809924,1770.4,1770.1,0.7908]
[1745538504611,5.64876009,1770.3,1769.7,0.7845]
[1745538504921,5.6495944,1770.1,1769.8,4.811]
[1745538505119,6.42416628,1770.2,1769.8,5.93561688]
[1745538505431,5.64945431,1770.1,1769.8,5.93561688]
[1745538505632,5.64940536,1770.1,1769.8,5.93561688]
[1745538506139,5.64892731,1770.3,1769.9,0.7827]
[1745538507239,5.64910085,1770.2,1769.9,0.7827]
[1745538507437,5.64910085,1770.2,1769.9,2.09335877]
[1745538508622,5.64940552,1770.1,1769.9,0.7827]
[1745538510934,5.6498165,1770.0,1769.8,4.812]
[1745538511120,5.64958322,1770.1,1769.8,4.812]
[1745538512851,11.29857123,1770.2,1769.8,5.369]
[1745538513732,11.29862677,1770.2,1769.8,5.369]
[1745538514421,5.6492482,1770.2,1769.9,0.7811]
[1745538514853,5.64931583,1770.2,1769.9,0.7811]
[1745538515239,5.64940541,1770.1,1769.9,0.7811]
[1745538515445,5.64971751,1770.0,1769.8,5.369]
[1745538515646,5.64971751,1770.0,1769.8,6.1455]
[1745538515884,5.64971751,1770.0,1769.8,5.5885]
[1745538516160,5.64926232,1770.2,1769.8,5.5885]
[1745538516647,5.64926232,1770.2,1769.8,11.23875128]
[1745538516819,5.64893645,1770.3,1769.8,5.5885]
[1745538517156,5.64927819,1770.2,1769.8,5.5885]
[1745538517352,11.29866242,1770.2,1769.9,0.55885]
[1745538517556,5.64927819,1770.2,1769.9,0.55885]
[1745538517754,5.64959844,1770.1,1769.9,0.55885]
[1745538518051,5.64959844,1770.1,1769.8,5.5885]
[1745538518444,5.64985464,1770.0,1769.8,5.5885]
[1745538518645,6.4436136,1770.1,1769.8,5.5885]
[1745538520536,5.6496136,1770.1,1769.8,5.5885]
[1745538521162,11.29929143,1770.1,1769.8,5.5885]
[1745538521364,5.6496136,1770.1,1769.8,5.5885]
[1745538521578,5.64991097,1770.0,1769.8,5.5885]
[1745538521866,5.64958754,1770.1,1769.8,4.812]
[1745538522065,5.64988417,1770.0,1769.8,4.812]
[1745538522268,5.65003672,1769.9,1769.8,4.812]
[1745538522765,5.65003672,1769.9,1769.6,0.8096]
[1745538522965,5.65035597,1769.8,1769.7,4.812]
[1745538524333,5.65035597,1769.8,1769.7,4.81]